fUST/lending_fUST_20250819
["ID","MTS","AMOUNT","RATE_DAILY","PERIOD"]
[380159758,1755585041297,-151.0,0.00019178,2]
[380159759,1755585041311,-480.0,0.00019178,2]
[380159760,1755585041325,-480.0,0.00019178,2]
[380159761,1755585041340,-199.23372552,0.00019178,2]
[380159762,1755585041354,-484.97191476,0.00019178,2]
[380159763,1755585041365,-151.0,0.00019178,2]
[380159764,1755585041376,-500.0,0.00019178,2]
[380159765,1755585041388,-480.0,0.00019178,2]
[380159766,1755585041402,-480.0,0.00019178,2]
[380159767,1755585041416,-547.13201002,0.00019178,2]
[380159768,1755585041427,-480.0,0.00019178,2]
[380159769,1755585041442,-497.02014658,0.00019178,2]
[380159770,1755585041456,-481.64824762,0.00019178,2]
[380159771,1755585041471,-688.16,0.00019178,2]
[380159772,1755585041483,-480.0,0.00019178,2]
[380159773,1755585041495,-480.0,0.00019178,2]
[380159774,1755585041507,-480.0,0.00019178,2]
[380159775,1755585041521,-480.0,0.00019178,2]
[380159776,1755585041533,-1346.97,0.00019178,2]
[380159777,1755585041546,-480.0,0.00019178,2]
[380159778,1755585041559,-480.0,0.00019178,2]
[380159779,1755585041571,-480.0,0.00019178,2]
[380159780,1755585041583,-480.0,0.00019178,2]
[380159781,1755585041594,-480.0,0.00019178,2]
[380159782,1755585041608,-480.0,0.00019178,2]
[380159783,1755585041619,-460.54170042,0.00019178,2]
[380159784,1755585041631,-480.0,0.00019178,2]
[380159785,1755585041643,-480.0,0.00019178,2]
[380159786,1755585041654,-480.0,0.00019178,2]
[380159787,1755585041666,-480.0,0.00019178,2]
[380159788,1755585041677,-1556.94,0.00019178,2]
[380159789,1755585041691,-480.0,0.00019178,2]
[380159790,1755585041703,-480.0,0.00019178,2]
[380159791,1755585041715,-480.0,0.00019178,2]
[380159792,1755585041726,-480.0,0.00019178,2]
[380159793,1755585041739,-480.0,0.00019178,2]
[380159794,1755585041750,-480.0,0.00019178,2]
[380159795,1755585041761,-480.0,0.00019178,2]
[380159796,1755585041774,-480.0,0.00019178,2]
[380159797,1755585041786,-480.0,0.00019178,2]
[380159798,1755585041798,-480.0,0.00019178,2]
[380159799,1755585041809,-554.73,0.00019178,2]
[380159800,1755585041821,-480.0,0.00019178,2]
[380159801,1755585041833,-480.0,0.00019178,2]
[380159802,1755585041845,-480.0,0.00019178,2]
[380159803,1755585041856,-480.0,0.00019178,2]
[380159804,1755585041868,-480.0,0.00019178,2]
[380159805,1755585041879,-480.0,0.00019178,2]
[380159806,1755585041891,-480.0,0.00019178,2]
[380159807,1755585041902,-714.3,0.00019178,2]
[380159808,1755585041914,-480.0,0.00019178,2]
[380159809,1755585041925,-482.64935865,0.00019178,2]
[380159810,1755585041937,-480.0,0.00019178,2]
[380159811,1755585041948,-480.0,0.00019178,2]
[380159812,1755585041959,-480.0,0.00019178,2]
[380159813,1755585041971,-480.0,0.00019178,2]
[380159814,1755585041982,-480.0,0.00019178,2]
[380159815,1755585041994,-480.0,0.00019178,2]
[380159816,1755585042006,-480.0,0.00019178,2]
[380159817,1755585042017,-802.3,0.00019178,2]
[380159818,1755585042029,-480.0,0.00019178,2]
[380159819,1755585042040,-480.0,0.00019178,2]
[380159820,1755585042052,-480.0,0.00019178,2]
[380159821,1755585042064,-480.0,0.00019178,2]
[380159822,1755585042076,-480.0,0.00019178,2]
[380159823,1755585042086,-1591.45,0.00019178,2]
[380159824,1755585042096,-480.0,0.00019178,2]
[380159825,1755585042106,-488.72897337,0.00019178,2]
[380159826,1755585042115,-481.3931654,0.00019178,2]
[380159827,1755585042272,-5000.0,0.00019178,2]
[380159828,1755585042283,-5000.0,0.00019178,2]
[380159829,1755585042293,-1340.36565112,0.00019178,2]
[380159830,1755585042302,-666.0,0.00019178,2]
[380159832,1755585042312,-905.67022272,0.00019195,2]
[380159833,1755585042323,-151.0,0.000192,2]
[380159834,1755585042332,-3000.0,0.000192,2]
[380159837,1755585042342,-3000.0,0.000192,2]
[380159838,1755585042352,-6012.70947214,0.0001922,2]
[380159840,1755585042361,-500.0,0.00019251,2]
[380159841,1755585042372,-302.51602579,0.00019278,2]
[380159842,1755585042381,-1442.06639537,0.000193,2]
[380159843,1755585042390,-153.0,0.000193,2]
[380159844,1755585042399,-153.0,0.000193,2]
[380159845,1755585042408,-905.67022272,0.000193,2]
[380159846,1755585042418,-151.0,0.00019329,2]
[380159847,1755585042427,-171.205319,0.00019329,2]
[380159848,1755585042437,-171.205319,0.00019329,2]
[380159849,1755585042447,-151.0,0.00019329,2]
[380159850,1755585042457,-151.0,0.00019329,2]
[380159851,1755585042467,-151.0,0.00019329,2]
[380159852,1755585042478,-542.250259,0.00019329,2]
[380159853,1755585042488,-542.250259,0.00019329,2]
[380159854,1755585042498,-151.0,0.00019329,2]
[380159855,1755585042507,-151.0,0.00019329,2]
[380159856,1755585042517,-151.751207,0.00019329,2]
[380159857,1755585042526,-151.0,0.00019329,2]
[380159858,1755585042536,-399.084057,0.00019329,2]
[380159859,1755585042546,-399.084057,0.00019329,2]
[380159860,1755585042556,-151.0,0.00019329,2]
[380159861,1755585042565,-151.0,0.00019329,2]
[380159862,1755585042575,-151.0,0.00019329,2]
[380159863,1755585042584,-204.277819,0.00019329,2]
[380159864,1755585042595,-204.277819,0.00019329,2]
[380159865,1755585042604,-151.0,0.00019329,2]
[380159866,1755585042614,-151.0,0.00019329,2]
[380159867,1755585042623,-151.0,0.00019329,2]
[380159868,1755585042632,-1274.417039,0.00019329,2]
[380159869,1755585042641,-409.660367,0.00019329,2]
[380159870,1755585042650,-409.660367,0.00019329,2]
[380159871,1755585042660,-1274.417039,0.00019329,2]
[380159872,1755585042669,-151.0,0.00019329,2]
[380159873,1755585042678,-151.0,0.00019329,2]
[380159874,1755585042688,-151.0,0.00019329,2]
[380159875,1755585042698,-159.472657,0.00019329,2]
[380159876,1755585042708,-151.0,0.00019329,2]
[380159877,1755585042718,-151.0,0.00019329,2]
[380159878,1755585042729,-159.472657,0.00019329,2]
[380159879,1755585042739,-188.956485,0.00019329,2]
[380159880,1755585042748,-151.0,0.00019329,2]
[380159881,1755585042757,-188.956485,0.00019329,2]
[380159882,1755585042767,-151.0,0.00019329,2]
[380159883,1755585042776,-151.757454,0.00019329,2]
[380159884,1755585042785,-151.0,0.00019329,2]
[380159885,1755585042795,-151.0,0.00019329,2]
[380159886,1755585042806,-151.0,0.00019329,2]
[380159887,1755585042815,-310.503962,0.00019329,2]
[380159888,1755585042824,-151.0,0.00019329,2]
[380159889,1755585042833,-310.503962,0.00019329,2]
[380159891,1755585042843,-151.0,0.00019329,2]
[380159893,1755585042853,-151.0,0.00019329,2]
[380159895,1755585042862,-151.0,0.00019329,2]
[380159896,1755585042872,-151.0,0.00019329,2]
[380159897,1755585042881,-151.0,0.00019329,2]
[380159898,1755585042892,-151.0,0.00019329,2]
[380159899,1755585042902,-228.432282,0.00019329,2]
[380159900,1755585042912,-151.0,0.00019329,2]
[380159901,1755585042923,-151.0,0.00019329,2]
[380159902,1755585042934,-151.0,0.00019329,2]
[380159903,1755585042943,-263.262141,0.00019329,2]
[380159904,1755585042952,-151.0,0.00019329,2]
[380159905,1755585042961,-263.262141,0.00019329,2]
[380159906,1755585042970,-652.083183,0.00019329,2]
[380159907,1755585042979,-652.083183,0.00019329,2]
[380159908,1755585042988,-151.714163,0.00019329,2]
[380159909,1755585042998,-168.149576,0.00019329,2]
[380159910,1755585043007,-151.0,0.00019329,2]
[380159911,1755585043016,-168.149576,0.00019329,2]
[380159912,1755585043026,-151.0,0.00019329,2]
[380159913,1755585043035,-151.0,0.00019329,2]
[380159914,1755585043044,-151.0,0.00019329,2]
[380159915,1755585043053,-193.40245,0.00019329,2]
[380159916,1755585043062,-151.0,0.00019329,2]
[380159917,1755585043071,-151.0,0.00019329,2]
[380159918,1755585043080,-151.0,0.00019329,2]
[380159919,1755585043097,-151.0,0.00019329,2]
[380159920,1755585043107,-151.0,0.00019329,2]
[380159921,1755585043116,-267.301356,0.00019329,2]
[380159923,1755585043125,-267.301356,0.00019329,2]
[380159925,1755585043135,-212.69257,0.00019329,2]
[380159926,1755585043144,-151.0,0.00019329,2]
[380159928,1755585043154,-151.0,0.00019329,2]
[380159930,1755585043163,-100000.0,0.00019329,2]
[380159932,1755585043173,-1000.0,0.00019352,2]
[380159934,1755585043182,-501.16140526,0.00019373,2]
[380159936,1755585043196,-258.80967205,0.00019373,2]
[380159938,1755585043210,-553.21200131,0.00019373,2]
[380159940,1755585043219,-158.6785085,0.00019373,2]
[380159942,1755585043228,-185.50628992,0.00019373,2]
[380159944,1755585043238,-502.00043221,0.00019373,2]
[380159946,1755585043247,-501.0378727,0.00019373,2]
[380159947,1755585043256,-500.0,0.00019373,2]
[380159949,1755585043266,-500.0,0.00019373,2]
[380159951,1755585043275,-151.51570773,0.00019373,2]
[380159954,1755585043285,-500.0,0.00019373,2]
[380159956,1755585043295,-179.71246006,0.00019396,2]
[380159958,1755585043305,-14961.44814873,0.00019397,2]
[380159960,1755585043314,-439.53183,0.00019397,2]
[380159962,1755585043323,-62162.0,0.000194,2]
[380159963,1755585043332,-151.0,0.000194,2]
[380159965,1755585043342,-152.364018,0.000194,2]
[380159968,1755585043351,-151.0,0.000194,2]
[380159969,1755585043361,-151.0,0.000194,2]
[380159972,1755585043370,-151.0,0.000194,2]
[380159973,1755585043379,-151.0,0.000194,2]
[380159976,1755585043389,-259.684581,0.000194,2]
[380159978,1755585043398,-151.0,0.000194,2]
[380159979,1755585043407,-151.0,0.000194,2]
[380159982,1755585043417,-151.0,0.000194,2]
[380159983,1755585043426,-151.0,0.000194,2]
[380159985,1755585043436,-151.0,0.000194,2]
[380159987,1755585043445,-542.250259,0.000194,2]
[380159989,1755585043455,-542.250259,0.000194,2]
[380159992,1755585043464,-151.0,0.000194,2]
[380159994,1755585043478,-151.0,0.000194,2]
[380159996,1755585043487,-151.0,0.000194,2]
[380159998,1755585043497,-399.084057,0.000194,2]
[380160000,1755585043506,-399.084057,0.000194,2]
[380160002,1755585043517,-151.0,0.000194,2]
[380160004,1755585043527,-227.953091,0.000194,2]
[380160006,1755585043537,-151.0,0.000194,2]
[380160008,1755585043547,-204.277819,0.000194,2]
[380160010,1755585043556,-204.277819,0.000194,2]
[380160012,1755585043566,-151.0,0.000194,2]
[380160013,1755585043575,-151.0,0.000194,2]
[380160015,1755585043584,-151.0,0.000194,2]
[380160017,1755585043594,-1274.417039,0.000194,2]
[380160019,1755585043603,-409.660367,0.000194,2]
[380160021,1755585043612,-409.660367,0.000194,2]
[380160022,1755585043622,-1274.417039,0.000194,2]
[380160023,1755585043631,-151.0,0.000194,2]
[380160024,1755585043641,-151.0,0.000194,2]
[380160025,1755585043651,-151.0,0.000194,2]
[380160026,1755585043660,-159.472657,0.000194,2]
[380160027,1755585043669,-151.0,0.000194,2]
[380160028,1755585043679,-151.0,0.000194,2]
[380160029,1755585043688,-159.472657,0.000194,2]
[380160030,1755585043698,-188.956485,0.000194,2]
[380160031,1755585043707,-151.0,0.000194,2]
[380160032,1755585043717,-188.956485,0.000194,2]
[380160033,1755585043726,-151.744069,0.000194,2]
[380160034,1755585043735,-151.0,0.000194,2]
[380160035,1755585043745,-151.0,0.000194,2]
[380160036,1755585043754,-151.0,0.000194,2]
[380160037,1755585043763,-310.503962,0.000194,2]
[380160038,1755585043773,-310.503962,0.000194,2]
[380160039,1755585043782,-151.0,0.000194,2]
[380160040,1755585043792,-151.0,0.000194,2]
[380160041,1755585043801,-231.672566,0.000194,2]
[380160042,1755585043811,-151.0,0.000194,7]
[380160043,1755585043820,-151.0,0.000194,7]
[380160044,1755585043829,-151.0,0.000194,7]
[380160045,1755585043839,-154.926989,0.000194,7]
[380160046,1755585043848,-151.0,0.000194,2]
[380160047,1755585043857,-151.0,0.000194,2]
[380160048,1755585043866,-151.0,0.000194,2]
[380160049,1755585043875,-151.0,0.000194,2]
[380160050,1755585043885,-151.0,0.000194,2]
[380160051,1755585043894,-151.0,0.000194,2]
[380160052,1755585043903,-151.0,0.000194,2]
[380160053,1755585043912,-263.262141,0.000194,2]
[380160054,1755585043921,-151.0,0.000194,2]
[380160055,1755585043931,-263.262141,0.000194,2]
[380160056,1755585043940,-652.083183,0.000194,2]
[380160057,1755585043950,-652.083183,0.000194,2]
[380160058,1755585043960,-168.149576,0.000194,2]
[380160059,1755585043969,-151.0,0.000194,2]
[380160060,1755585043978,-168.149576,0.000194,2]
[380160061,1755585043988,-151.0,0.000194,2]
[380160062,1755585043997,-151.0,0.000194,2]
[380160063,1755585044007,-153.196318,0.000194,2]
[380160064,1755585044016,-151.0,0.000194,2]
[380160065,1755585044026,-151.0,0.000194,2]
[380160066,1755585044035,-299.766118,0.000194,2]
[380160067,1755585044044,-151.854492,0.000194,2]
[380160068,1755585044054,-267.301356,0.000194,2]
[380160069,1755585044063,-267.301356,0.000194,2]
[380160070,1755585044074,-151.0,0.000194,2]
[380160071,1755585044083,-151.0,0.00019452,2]
[380160072,1755585044093,-198.0,0.00019452,2]
[380160073,1755585044102,-500.0,0.00019452,2]
[380160074,1755585044112,-151.0,0.00019452,2]
[380160075,1755585044121,-220.46693196,0.00019452,2]
[380160076,1755585044131,-480.0,0.00019452,2]
[380160077,1755585044140,-480.0,0.00019452,2]
[380160078,1755585044149,-480.0,0.00019452,2]
[380160079,1755585044158,-480.0,0.00019452,2]
[380160080,1755585044168,-151.0,0.00019452,2]
[380160081,1755585044177,-151.0,0.00019452,2]
[380160082,1755585044187,-480.0,0.00019452,2]
[380160083,1755585044196,-151.0,0.00019452,2]
[380160084,1755585044205,-151.0,0.00019452,2]
[380160085,1755585044215,-522.35617585,0.00019452,2]
[380160086,1755585044225,-178.086988,0.00019452,2]
[380160087,1755585044235,-178.086988,0.00019452,2]
[380160088,1755585044244,-480.0,0.00019452,2]
[380160089,1755585044254,-480.0,0.00019452,2]
[380160090,1755585044263,-151.0,0.00019452,2]
[380160091,1755585044272,-480.0,0.00019452,2]
[380160092,1755585044281,-151.0,0.00019452,2]
[380160093,1755585044293,-151.0,0.00019452,2]
[380160094,1755585044302,-480.0,0.00019452,2]
[380160095,1755585044312,-480.0,0.00019452,2]
[380160096,1755585044325,-480.0,0.00019452,2]
[380160097,1755585044334,-480.0,0.00019452,2]
[380160098,1755585044344,-151.0,0.00019452,2]
[380160099,1755585044354,-519.72374108,0.00019452,2]
[380160100,1755585044365,-151.0,0.00019452,2]
[380160101,1755585044375,-221.15,0.00019452,2]
[380160102,1755585044384,-480.0,0.00019452,2]
[380160103,1755585044394,-480.0,0.00019452,2]
[380160104,1755585044404,-480.0,0.00019452,2]
[380160105,1755585044413,-707.87,0.00019452,2]
[380160106,1755585044423,-480.0,0.00019452,2]
[380160107,1755585044433,-480.0,0.00019452,2]
[380160108,1755585044442,-151.0,0.00019452,2]
[380160109,1755585044452,-424.51158673,0.00019452,2]
[380160110,1755585044461,-480.0,0.00019452,2]
[380160111,1755585044475,-480.0,0.00019452,2]
[380160112,1755585044484,-485.22120474,0.00019452,2]
[380160113,1755585044494,-480.0,0.00019452,2]
[380160114,1755585044503,-480.0,0.00019452,2]
[380160115,1755585044513,-480.0,0.00019452,2]
[380160116,1755585044522,-151.0,0.00019452,2]
[380160117,1755585044532,-151.0,0.00019452,2]
[380160118,1755585044541,-480.0,0.00019452,2]
[380160119,1755585044550,-480.0,0.00019452,2]
[380160120,1755585044560,-151.0,0.00019452,2]
[380160121,1755585044569,-608.14,0.00019452,2]
[380160122,1755585044578,-480.0,0.00019452,2]
[380160123,1755585044587,-151.0,0.00019452,2]
[380160124,1755585044598,-151.0,0.00019452,2]
[380160125,1755585044607,-273.697609,0.00019452,2]
[380160126,1755585044616,-480.0,0.00019452,2]
[380160127,1755585044626,-436.97606699,0.00019452,2]
[380160128,1755585044635,-151.0,0.00019452,2]
[380160129,1755585044644,-480.0,0.00019452,2]
[380160130,1755585044653,-546.76,0.00019452,2]
[380160131,1755585044743,-480.0,0.00019452,2]
[380160132,1755585044764,-480.0,0.00019452,2]
[380160133,1755585044774,-480.0,0.00019452,2]
[380160134,1755585044783,-260.989484,0.00019452,2]
[380160135,1755585044793,-171.205319,0.00019452,2]
[380160136,1755585044802,-171.205319,0.00019452,2]
[380160137,1755585044812,-171.205319,0.00019452,2]
[380160138,1755585044822,-171.205319,0.00019452,2]
[380160139,1755585044832,-480.0,0.00019452,2]
[380160140,1755585044842,-632.55,0.00019452,2]
[380160141,1755585044851,-480.0,0.00019452,2]
[380160142,1755585044861,-480.0,0.00019452,2]
[380160143,1755585044870,-1021.37,0.00019452,2]
[380160144,1755585044880,-480.0,0.00019452,2]
[380160145,1755585044890,-480.0,0.00019452,2]
[380160146,1755585044899,-480.0,0.00019452,2]
[380160147,1755585044908,-257.11280651,0.00019452,2]
[380160148,1755585044918,-151.0,0.00019452,2]
[380160149,1755585044927,-542.250259,0.00019452,2]
[380160150,1755585044938,-1595.62,0.00019452,2]
[380160151,1755585044947,-542.250259,0.00019452,2]
[380160152,1755585044956,-480.0,0.00019452,2]
[380160153,1755585044965,-480.0,0.00019452,2]
[380160154,1755585044975,-480.0,0.00019452,2]
[380160155,1755585044984,-151.0,0.00019452,2]
[380160156,1755585044994,-480.0,0.00019452,2]
[380160157,1755585045003,-151.0,0.00019452,2]
[380160158,1755585045012,-303.10248958,0.00019452,2]
[380160159,1755585045149,-176.89751042,0.00019452,2]
[380160160,1755585045158,-480.0,0.00019452,2]
[380160161,1755585045167,-480.0,0.00019452,2]
[380160162,1755585045176,-437.35334718,0.00019452,2]
[380160163,1755585045186,-480.0,0.00019452,2]
[380160164,1755585045195,-1342.62,0.00019452,2]
[380160165,1755585045204,-758.16,0.00019452,2]
[380160166,1755585045213,-480.0,0.00019452,2]
[380160167,1755585045223,-788.15,0.00019452,2]
[380160168,1755585045232,-480.0,0.00019452,2]
[380160169,1755585045242,-399.084057,0.00019452,2]
[380160170,1755585045252,-4923.83,0.00019452,2]
[380160171,1755585045261,-770.93,0.00019452,2]
[380160172,1755585045271,-399.084057,0.00019452,2]
[380160173,1755585045281,-151.0,0.00019452,2]
[380160174,1755585045291,-151.0,0.00019452,2]
[380160175,1755585045300,-480.0,0.00019452,2]
[380160176,1755585045310,-204.277819,0.00019452,2]
[380160177,1755585045319,-204.277819,0.00019452,2]
[380160178,1755585045329,-480.0,0.00019452,2]
[380160179,1755585045338,-480.0,0.00019452,2]
[380160180,1755585045347,-480.0,0.00019452,2]
[380160181,1755585045356,-480.0,0.00019452,2]
[380160182,1755585045366,-151.0,0.00019452,2]
[380160183,1755585045375,-731.17,0.00019452,2]
[380160184,1755585045384,-724.46,0.00019452,2]
[380160185,1755585045394,-605.83,0.00019452,2]
[380160186,1755585045404,-480.0,0.00019452,2]
[380160187,1755585045413,-151.0,0.00019452,2]
[380160188,1755585045424,-1434.66,0.00019452,2]
[380160189,1755585045434,-480.0,0.00019452,2]
[380160190,1755585045445,-480.0,0.00019452,2]
[380160191,1755585045454,-518.1,0.00019452,2]
[380160192,1755585045464,-322.87024294,0.00019452,2]
[380160193,1755585045479,-1274.417039,0.00019452,2]
[380160194,1755585045488,-541.34512279,0.00019452,2]
[380160195,1755585045497,-480.0,0.00019452,2]
[380160196,1755585045507,-409.660367,0.00019452,2]
[380160197,1755585045518,-409.660367,0.00019452,2]
[380160198,1755585045527,-1274.417039,0.00019452,2]
[380160200,1755585045536,-480.0,0.00019452,2]
[380160201,1755585045547,-480.0,0.00019452,2]
[380160202,1755585045556,-527.75,0.00019452,2]
[380160203,1755585045565,-151.0,0.00019452,2]
[380160204,1755585045574,-151.0,0.00019452,2]
[380160205,1755585045583,-460.0,0.00019452,2]
[380160206,1755585045592,-151.0,0.00019452,2]
[380160207,1755585045601,-159.472657,0.00019452,2]
[380160208,1755585045610,-480.0,0.00019452,2]
[380160209,1755585045619,-151.0,0.00019452,2]
[380160210,1755585045629,-480.0,0.00019452,2]
[380160211,1755585045638,-159.472657,0.00019452,2]
[380160212,1755585045647,-188.956485,0.00019452,2]
[380160213,1755585045656,-480.0,0.00019452,2]
[380160214,1755585045666,-151.0,0.00019452,2]
[380160215,1755585045675,-188.956485,0.00019452,2]
[380160216,1755585045685,-480.0,0.00019452,2]
[380160217,1755585045695,-480.0,0.00019452,2]
[380160218,1755585045705,-480.0,0.00019452,2]
[380160219,1755585045714,-151.0,0.00019452,2]
[380160220,1755585045724,-151.0,0.00019452,2]
[380160221,1755585045734,-1193.28,0.00019452,2]
[380160222,1755585045743,-439.93078696,0.00019452,2]
[380160223,1755585045752,-1576.54,0.00019452,2]
[380160225,1755585045762,-1086.8,0.00019452,2]
[380160227,1755585045771,-480.0,0.00019452,2]
[380160228,1755585045780,-480.0,0.00019452,2]
[380160229,1755585045789,-480.0,0.00019452,2]
[380160230,1755585045798,-151.163807,0.00019452,2]
[380160231,1755585045808,-310.503962,0.00019452,2]
[380160232,1755585045818,-480.0,0.00019452,2]
[380160233,1755585045827,-310.503962,0.00019452,2]
[380160234,1755585045837,-151.0,0.00019452,2]
[380160235,1755585045846,-2504.47,0.00019452,2]
[380160236,1755585045856,-151.0,0.00019452,2]
[380160237,1755585045865,-480.0,0.00019452,2]
[380160238,1755585045875,-480.0,0.00019452,2]
[380160239,1755585045884,-153.600496,0.00019452,2]
[380160240,1755585045893,-480.0,0.00019452,2]
[380160241,1755585045902,-480.0,0.00019452,2]
[380160242,1755585045912,-3439.07,0.00019452,2]
[380160243,1755585045921,-1368.58,0.00019452,2]
[380160244,1755585045931,-480.0,0.00019452,2]
[380160245,1755585045940,-480.0,0.00019452,2]
[380160246,1755585045949,-3431.26,0.00019452,2]
[380160247,1755585045958,-529.48,0.00019452,2]
[380160248,1755585045967,-716.46,0.00019452,2]
[380160249,1755585045976,-483.06,0.00019452,2]
[380160250,1755585045985,-480.0,0.00019452,2]
[380160251,1755585045995,-151.0,0.00019452,2]
[380160252,1755585046004,-480.0,0.00019452,2]
[380160253,1755585046013,-623.72,0.00019452,2]
[380160254,1755585046023,-151.0,0.00019452,2]
[380160255,1755585046032,-675.5,0.00019452,2]
[380160256,1755585046042,-1858.92,0.00019452,2]
[380160258,1755585046051,-1034.56,0.00019452,2]
[380160260,1755585046061,-510.36,0.00019452,2]
[380160261,1755585046073,-480.0,0.00019452,2]
[380160262,1755585046082,-151.0,0.00019452,2]
[380160263,1755585046091,-480.0,0.00019452,2]
[380160264,1755585046101,-151.0,0.00019452,2]
[380160265,1755585046111,-1938.66,0.00019452,2]
[380160266,1755585046121,-151.0,0.00019452,2]
[380160267,1755585046130,-637.45,0.00019452,2]
[380160268,1755585046141,-480.0,0.00019452,2]
[380160269,1755585046150,-480.0,0.00019452,2]
[380160270,1755585046159,-548.48,0.00019452,2]
[380160271,1755585046168,-179.888096,0.00019452,2]
[380160272,1755585046178,-480.0,0.00019452,2]
[380160273,1755585046188,-480.0,0.00019452,2]
[380160274,1755585046197,-480.0,0.00019452,2]
[380160275,1755585046207,-480.0,0.00019452,2]
[380160276,1755585046216,-480.0,0.00019452,2]
[380160277,1755585046225,-4712.97,0.00019452,2]
[380160278,1755585046235,-423.63823444,0.00019452,2]
[380160279,1755585046244,-480.0,0.00019452,2]
[380160281,1755585046254,-1623.53,0.00019452,2]
[380160282,1755585046263,-480.0,0.00019452,2]
[380160283,1755585046272,-480.0,0.00019452,2]
[380160284,1755585046282,-539.58,0.00019452,2]
[380160285,1755585046291,-650.51,0.00019452,2]
[380160286,1755585046303,-424.67426976,0.00019452,2]
[380160287,1755585046313,-480.0,0.00019452,2]
[380160288,1755585046323,-500.0,0.00019452,2]
[380160289,1755585046332,-480.0,0.00019452,2]
[380160290,1755585046342,-263.262141,0.00019452,2]
[380160291,1755585046352,-480.0,0.00019452,2]
[380160292,1755585046361,-151.0,0.00019452,2]
[380160293,1755585046371,-263.262141,0.00019452,2]
[380160294,1755585046380,-652.083183,0.00019452,2]
[380160295,1755585046389,-688.16,0.00019452,2]
[380160296,1755585046399,-652.083183,0.00019452,2]
[380160297,1755585046409,-480.0,0.00019452,2]
[380160298,1755585046418,-480.0,0.00019452,2]
[380160299,1755585046428,-480.0,0.00019452,2]
[380160300,1755585046437,-1346.97,0.00019452,2]
[380160301,1755585046447,-481.56987683,0.00019452,2]
[380160302,1755585046456,-480.0,0.00019452,2]
[380160303,1755585046467,-480.0,0.00019452,2]
[380160304,1755585046478,-168.149576,0.00019452,2]
[380160305,1755585046488,-151.0,0.00019452,2]
[380160306,1755585046497,-168.149576,0.00019452,2]
[380160307,1755585046507,-480.0,0.00019452,2]
[380160308,1755585046517,-480.0,0.00019452,2]
[380160309,1755585046526,-151.0,0.00019452,2]
[380160310,1755585046535,-480.0,0.00019452,2]
[380160311,1755585046544,-1556.94,0.00019452,2]
[380160312,1755585046554,-480.0,0.00019452,2]
[380160313,1755585046563,-480.0,0.00019452,2]
[380160314,1755585046573,-480.0,0.00019452,2]
[380160315,1755585046582,-480.0,0.00019452,2]
[380160316,1755585046592,-480.0,0.00019452,2]
[380160317,1755585046602,-480.0,0.00019452,2]
[380160318,1755585046612,-554.73,0.00019452,2]
[380160319,1755585046621,-480.0,0.00019452,2]